Cogmind - Beta 15 @@@ ROGUE MODE // 2025.07.05 @ 12:06:36 Player: Sorus Result: Destroyed by G-34 Mercenary with Small Laser Performance ------------- Evolutions (0) 0 Regions Visited (1) 200 Robots Destroyed (16) 80 Value Destroyed (338) 338 Prototype IDs (0) 0 Alien Tech Used (0) 0 Bonus (0) 0 TOTAL SCORE: 618 Bonus ------- None Cogmind --------- Core Integrity 0/250 Matter 259/300 Energy 248/250 System Corruption 0% Temperature Cool (30) Movement Treading (160) Location -10/Materials Parts ------- > --- POWER (1) -------- Ion Engine > --- PROPULSION (2) --- Light Treads Light Treads > --- UTILITY (2) ------ Small Storage Unit Power Shielding > --- WEAPON (2) ------- Light Cannon Mining Laser > --- INVENTORY (8) ---- Ion Engine Ion Engine Light Ion Engine Light Ion Engine Aluminum Leg Aluminum Leg Wheel Peak State ------------ > --- POWER ------------ Ion Engine > --- PROPULSION ------- Aluminum Leg Aluminum Leg > --- UTILITY ---------- Small Storage Unit Targeting Computer > --- WEAPON ----------- EM Pulse Gun Light Assault Rifle > --- INVENTORY -------- Light Ion Engine Light Treads Light Treads Wheel Wheel Medium Laser [Rating: 7] Favorites ----------- Power Ion Engine Engine Ion Engine Propulsion Aluminum Leg Treads Light Treads Leg Aluminum Leg Wheel Wheel Utility Small Storage Unit Storage Small Storage Unit Processor Targeting Computer Protection Power Shielding Weapon Light Assault Rifle Energy Gun EM Pulse Gun Ballistic Gun Light Assault Rifle Ballistic Cannon Light Cannon Special Weapon Mining Laser Build | -11 -10 ------- Run | Yrd Mat Slots Evolved . | . . Power . | . . Propulsion . | . . Utility . | . . Weapon . | . . Parts Attached 18 | 7 11 Power 4 | 2 2 Engine 4 | 2 2 Core . | . . Reactor . | . . Propulsion 5 | 2 3 Treads 2 | . 2 Leg 2 | 2 . Wheel 1 | . 1 Hover . | . . Flight . | . . Utility 3 | 1 2 Device . | . . Storage 1 | 1 . Processor 1 | . 1 Hackware . | . . Protection 1 | . 1 Artifact . | . . Weapon 6 | 2 4 Energy Gun 2 | 1 1 Energy Cannon . | . . Ballistic Gun 2 | 1 1 Ballistic Cannon 1 | . 1 Launcher . | . . Special Weapon 1 | . 1 Impact Weapon . | . . Slashing Weapon . | . . Piercing Weapon . | . . Special Melee Weapon . | . . Unidentified Prototypes . | . . Parts Lost 5 | . 5 Power . | . . Propulsion 2 | . 2 Utility . | . . Weapon 3 | . 3 Highest Loss Streak 3 | . 3 To Critical Strikes 1 | . 1 Average Backups 5 | 2 5 Power 2 | . 2 Propulsion 2 | 1 2 Utility . | . . Weapon . | . . Tool/Special . | . . Unused Backups 6 | . 6 Power 3 | . 3 Propulsion 3 | . 3 Utility . | . . Weapon . | . . Tool/Special . | . . Average Slot Usage (%) 97 | . 97 Engine 14 | . 14 Treads 12 | . 12 Leg 14 | . 14 Storage 14 | . 14 Processor 7 | . 7 Protection 6 | . 6 Energy Gun 6 | . 6 Ballistic Gun 10 | . 10 Ballistic Cannon 4 | . 4 Special Weapon 5 | . 5 Peak Build Rating 7 | 6 7 Average Rating 6 | 4 6 On Entrance 3 | . 6 Naked Turns . | . . Heaviest Build 15 | 13 15 Greatest Support 40 | 20 40 Greatest Overweight (x) 3 | . 3 Average Overweight (x) . | . . Largest Inventory Capacity 8 | 8 8 Average Capacity 7 | 6 8 Most Carried 8 | 6 8 Average Carried 5 | 2 5 Final Capacity 8 | 8 8 Final Carried 7 | 6 7 Class Distribution -------------------- 100% | Mutant Dominant Class ---------------- Mutant | -10/Materials Resources | -11 -10 ----------- Run | Yrd Mat Matter Collected 363 | 174 189 Remotely . | . . Salvage Created 318 | . 318 Parts 26 | . 26 Haulers Intercepted . | . . Recyclers Shooed . | . . Parts Field Recycled . | . . Retrieved Matter . | . . Parts Self-Destructed . | . . Prevented . | . . Kills | -11 -10 ------- Run | Yrd Mat Combat Hostiles Destroyed 16 | . 16 Guns 10 | . 10 Cannons 3 | . 3 AOE 3 | . 3 Classes Destroyed 2 | . 2 Swarmer 9 | . 9 Grunt 7 | . 7 Best Kill Streak 3 | . 3 Combat Bots Only 3 | . 3 Max Kills in Single Turn 3 | . 3 Gunslinging . | . . Exploded 3 | . 3 Melee . | . . Uniques/NPCs Destroyed . | . . Combat | -11 -10 -------- Run | Yrd Mat Hostile Shots Fired 121 | . 121 Missed 31 | . 31 Hits 90 | . 90 Projectile 90 | . 90 Critical Strikes 2 | . 2 Damage Taken 948 | . 948 Core 251 | . 251 Absorbed by Shields . | . . Redirected to Shielding 6 | . 6 Core Remaining (%) 100 | 100 . Volleys Fired 51 | . 51 Largest 2 | . 2 Hottest 130 | . 130 Shots Fired 89 | . 89 Gun 71 | . 71 Cannon 14 | . 14 Launcher . | . . Special 4 | . 4 Kinetic 55 | . 55 Thermal 26 | . 26 Explosive . | . . Electromagnetic 8 | . 8 Robot Hit Streak 12 | . 12 Robot Miss Streak 5 | . 5 Penetration Max . | . . Secondary Targets . | . . Shots Hit Robots 56 | . 56 Core Hits 22 | . 22 Critical Kills . | . . Critical Parts Destroyed . | . . Critical Strikes . | . . Melee Attacks . | . . Impact . | . . Slashing . | . . Piercing . | . . Sneak Attacks . | . . Combat Hostiles . | . . Follow-up Attacks . | . . Damage Inflicted 898 | . 898 Guns 488 | . 488 Cannons 89 | . 89 Explosions 245 | . 245 Melee . | . . Ramming 4 | . 4 Kinetic 315 | . 315 Thermal 478 | . 478 Explosive . | . . Electromagnetic 101 | . 101 Impact . | . . Slashing . | . . Piercing . | . . Highest Corruption . | . . Average Corruption . | . . Corruption Purged . | . . Corruption Blocked . | . . Overload Shots . | . . Overflow Damage 80 | . 80 Projectiles . | . . Explosions 80 | . 80 Melee . | . . Knockbacks . | . . Impact . | . . Kinetic . | . . Secondary . | . . Self-Inflicted Damage 93 | . 93 Shots 1 | . 1 Rammed 1 | . 1 Targets Rammed 4 | 1 3 Kicked 3 | 1 2 Crushed . | . . Highest Temperature 212 | . 212 Average Temperature 67 | . 67 Received Heat Transfer 246 | . 246 Siege Activations . | . . Martial Activations . | . . Shielding Activations . | . . Robots Disrupted . | . . Combat Hostiles . | . . Robots Corrupted . | . . Combat Hostiles . | . . Parts Fried . | . . Impact Corruptions . | . . Robots Melted . | . . Combat Hostiles . | . . Parts Melted 1 | . 1 Heat Transferred 831 | . 831 Parts Sabotaged . | . . Parts Stolen . | . . Parts Stripped . | . . Power Chain Reactions . | . . Alert | -11 -10 ------- Run | Yrd Mat Maximum Alert Level . | . . Low Security (%) 100 | 100 100 Level 1 . | . . Level 2 . | . . Level 3 . | . . Level 4 . | . . Level 5 . | . . High Security . | . . Max Security . | . . Peak Influence 149 | . 149 Initial . | . . Average 39 | . 44 Influence Increases 443 | . 443 Destroy 0b10 Robot/C 320 | . 320 Destroy Leader 60 | . 60 Successful Hack 11 | . 11 Disable Machine 15 | . 15 Destroy Structure 37 | . 37 Influence Decreases 396 | . 396 Time Decay 356 | . 356 Lost Part 40 | . 40 Squads Dispatched 4 | . 4 Investigation 2 | . 2 Extermination . | . . Reinforcement 2 | . 2 Assault . | . . Garrison . | . . Intercept . | . . Searches Triggered . | . . Construction Impeded . | . . Haulers Reinforced . | . . Active Scanning Responses . | . . Cargo Convoy Interrupts . | . . Stealth | -11 -10 --------- Run | Yrd Mat Distress Signals 2 | . 2 Communications Jammed . | . . Distress Signals . | . . Times Spotted 29 | . 29 Peak Tracking Total 6 | . 6 Tactical Retreats . | . . Traps | -11 -10 ------- Run | Yrd Mat Traps Triggered 1 | . 1 Indirectly . | . . Trap Hack Attempts . | . . Triggered . | . . Disarmed . | . . Reprogrammed . | . . Reused . | . . Traps Extracted . | . . Installed . | . . Triggered . | . . Machines | -11 -10 ---------- Run | Yrd Mat Machines Disabled 1 | . 1 Max in Single Turn 1 | . 1 Machines Repaired . | . . Machines Dismantled . | . . Machines Sabotaged . | . . Overloaded Fab Kills . | . . Hacking | -11 -10 --------- Run | Yrd Mat Machines Accessed 4 | . 4 Terminals 2 | . 2 Fabricators . | . . Repair Stations . | . . Recycling Units 2 | . 2 Scanalyzers . | . . Garrison Access . | . . Total Hacks 15 | . 15 Successful 10 | . 10 Failed 5 | . 5 Catastrophic . | . . Database Lockouts . | . . Manual 1 | . 1 Terminals 7 | . 7 Fabricators . | . . Repair Stations . | . . Recycling Units 8 | . 8 Scanalyzers . | . . Garrison Access . | . . Terminal Hacks 4 | . 4 Record 2 | . 2 Alert Level 1 | . 1 Recall Investigation 1 | . 1 Fabricator Hacks . | . . Repair Station Hacks . | . . Recycling Unit Hacks 6 | . 6 Process 1 | . 1 Report Inventory 3 | . 3 Retrieve Matter 1 | . 1 Retrieve Components 1 | . 1 Scanalyzer . | . . Garrison Access Hacks . | . . Unauthorized Hacks . | . . Terminals . | . . Fabricators . | . . Repair Stations . | . . Recycling Units . | . . Scanalyzers . | . . Garrison Access . | . . Data Cores Recovered . | . . Used . | . . Hacking Detections 2 | . 2 Full Trace Events 1 | . 1 Feedback Events . | . . Feedback Blocked . | . . Robot Schematics Acquired . | . . Robots Built . | . . Authchips . | . . Time . | . . Total Robot Build Rating . | . . Part Schematics Acquired . | . . Parts Built . | . . Authchips . | . . Time . | . . Total Part Build Rating . | . . Parts Repaired . | . . Time . | . . Parts Recycled . | . . Recycled Matter 70 | . 70 Retrieved Matter 70 | . 70 Retrieved Components . | . . Parts Scanalyzed . | . . Part Schematics Acquired . | . . Parts Damaged . | . . Bothacking | -11 -10 ------------ Run | Yrd Mat Used RIF Installer . | . . Robots Hacked . | . . Non-combat . | . . Combat . | . . Robot Hacks Applied . | . . Relay Couplers Released . | . . Fabnet Peak Effective % . | . . Robots Rewired . | . . Allies Hacked . | . . Hacks Repelled . | . . Allies | -11 -10 -------- Run | Yrd Mat Total Allies . | . . Largest Group . | . . Highest-Rated Group . | . . Highest-Rated Ally . | . . Total Orders . | . . Ally Attacks . | . . Total Damage . | . . Kills . | . . Allies Corrupted . | . . Allies Melted . | . . Intel | -11 -10 ------- Run | Yrd Mat Active Infowar (turns) . | . . Robot Analysis Total . | . . Derelict Logs Recovered . | . . Drone Launches . | . . Drone Recoveries . | . . Exploration | -11 -10 ------------- Run | Yrd Mat Turns Passed 1309 | 150 1159 Spaces Moved 802 | 126 676 Core 28 | 25 3 Treads 294 | . 294 Legs 480 | 101 379 Wheels . | . . Hover . | . . Flight . | . . Fastest Speed 50 | 50 120 Average Speed 132 | 106 137 Slowest Speed 200 | 120 200 Overloaded Moves . | . . Propulsion Burnouts . | . . Robots Hopped . | . . Potential Cave-ins . | . . Cave-ins Triggered . | . . Exploration Rate (%) 47 | 8 87 Regions Visited 1 Branch Regions . Pre-discovered Areas . | . . Known Exits Taken . | . . Unknown Exits Taken 1 | 1 . Scrap Searched . | . . Spaces Dug . | . . Terrain Destroyed 43 | . 43 Melee . | . . Projectile 1 | . 1 AOE 42 | . 42 Terrain Rammed . | . . Walls Destroyed . | . . Machines Disabled . | . . Actions | -11 -10 --------- Run | Yrd Mat Total 952 | 139 813 Wait 59 | . 59 Move 801 | 125 676 Hop . | . . Pick Up 13 | 6 7 Fast Attach 7 | 5 2 Attach 7 | 1 6 Detach 2 | . 2 Swap 5 | 1 4 Drop 3 | . 3 Fire 51 | . 51 Melee . | . . Ram 1 | . 1 Kick 3 | 1 2 Crush . | . . Escape Stasis . | . . Rewire . | . . Trap . | . . Miscellaneous . | . . Route ------- -11/Scrapyard -10/Materials (discovered 3 exits: [*Mat x2] / [*Min]) History --------- Turn | Location | Event 7 | -11/Scrapyard | Discovered new exit (range 16) 151 | -11/Scrapyard | Entered Materials 314 | -10/Materials | Build established: Mutant 630 | -10/Materials | Discovered new exit (range 11) 765 | -10/Materials | Core integrity fell below 50% 769 | -10/Materials | Core integrity fell below 20% 797 | -10/Materials | Lost 3 parts (2n1w) 888 | -10/Materials | Discovered new exit (range 12) 1204 | -10/Materials | Discovered new exit (range 15) 1310 | -10/Materials | Destroyed by G-34 Mercenary with Small Laser Last Messages --------------- 01096_ ALERT: Alarm triggered, dispatching investigation squad. 01098_ U-05 Engineer lays Concrete. 01137_ U-05 Engineer builds a Wall. 01138_ G-34 Mercenary destroyed. 01152_ Acquired 4 matter. 01153_ Acquired 32 matter. 01158_ Acquired Aluminum Leg. 01165_ Acquired Ion Engine. 01172_ Acquired 17 matter. 01175_ Acquired 4 matter. 01203_ O-16 Technician: "IFF HANDSHAKE FAILED. SECURING TERMINAL." 01204_ EXIT=FOUND 01204_ T-07 Excavator is excavating. 01213_ ALERT: Hostiles spotted, dispatching reinforcements to Terminal M005. 01269_ Connecting with Terminal... >>Recall(Investigation) Establishing remote squad link... No tasked investigation squads found. 01278_ W-16 Scout sends out distress signal. Map ----- +----------------------------------------------------+ | | | | | | | | | | | | | | | | | | | ?????????????????????????????? | | ?????????????????????????????? | | ?????????????????????????????? | | ?????????????????????????????? | | ?????????????????????????????? | | #####????????????????????????? | | #????????????????????????? | | " #????????????????????????? | | " #????????????????????????? | | " #????????????????????????? | | #??????????######???###### | | " #??????????# ##### # | | " #??????????# # #"" # | | " #??????????# # < #"T # | | #??????????# # #"" # | | +####??????????# + g # | | #??????????# ! # #@ # | | #?########## # # # | | #? ! # # # # | | # ## # # # # | | # ## ###### ###### | | # ## #????# # # | | # ## """ """ #????# + T # | | # ## """ """ #????# # # | | # ## """ """ #????# # # | | # ## #????# %# # | | # ######+########## # # | | # #???# # # | | # #####! ######### # # | | # ##??????# # # | | # [#???????# ###### | | # #???????# #????? | | # #???????# #????? | | # """ #???????# #????? | | # """ #???????# #????? | | # """ #???????# #????? | | # #???????# +????? | | # +???????# #????? | | # """ #???????# #????? | | # """ #???????# +????? | | """ #????????# ##????? | +----------------------------------------------------+ Best States ------------- Heat Dissipation 25 Energy Generation 10 Energy Capacity 250 Matter Stores 300 Matter Capacity 300 Sight Range 16 Terrain Scan Density 10 Power Shielding 33 Evasion (%) 55 Targeting Accuracy 5 Recoil Reduction 2 Item Schematics ----------------- None Robot Schematics ------------------ None Fabricated ------------ Nothing Repaired ---------- Nothing Alien Tech Used ----------------- None Achievements -------------- None Challenges ------------ None Game ------ Seed MomentumMissileBooster Manual? 0 Play Time 00:19:04 Cumulative 4.8 hours Start 2025.07.05 @ 11:48:46 End 2025.07.05 @ 12:06:36 Sessions 1 Manual Loads 0 Difficulty Rogue Special Mode None Game No. 5 Rogue 5 Adventurer 0 Explorer 0 Win Type - Total 0 Types 0/0/0/0/0/0/0/0/0/0 Lore% 6 Gallery% 6 Achievement% 11 Wizard Run 0 Options --------- Layout 0 ASCII 0 Keyboard 1 Movement Numpad Keybinds 0 Fullscreen 2 Font 18/Terminus Map View 76x50 Zoom Use 0% Tactical HUD 1 Map Filters NONE Filters NONE Steam 1 RUN: 451d674b-5122-49c1-a9c4-1731bb73f889